[Event "Titled Tuesday Blitz July 6 2021"]
[White "Ezat, Mohamed"]
[Black "Hryshchenko, Kamila"]
[WhiteFideId "10600906"]
[BlackFideId "14147491"]
[WhiteElo "2414"]
[BlackElo "1966"]
[Result "1-0"]
[Round "09"]
[TimeControl "180+1"]
[Date "2021.07.06"]
[WhiteClock "0:00:14"]
[BlackClock "0:00:04"]

1. e4 {[%clk 0:02:20]}  d5 {[%clk 0:02:59]} 2. exd5 {[%clk 0:02:19]}  Qxd5 {[%clk 0:03:00]} 3. Nc3 {[%clk 0:02:16]}  Qe5+ {[%clk 0:03:00]} 4. Be2 {[%clk 0:02:15]}  Bg4 {[%clk 0:03:00]} 5. d4 {[%clk 0:02:13]}  Bxe2 {[%clk 0:03:01]} 6. Ngxe2 {[%clk 0:02:12]}  Qa5 {[%clk 0:03:02]} 7. O-O {[%clk 0:02:12]}  Nf6 {[%clk 0:03:02]} 8. d5 {[%clk 0:02:11]}  c6 {[%clk 0:03:02]} 9. Nf4 {[%clk 0:02:07]}  cxd5 {[%clk 0:03:01]} 10. Nfxd5 {[%clk 0:02:06]}  Nxd5 {[%clk 0:03:02]} 11. Qxd5 {[%clk 0:02:05]}  Qxd5 {[%clk 0:03:01]} 12. Nxd5 {[%clk 0:02:06]}  Na6 {[%clk 0:03:02]} 13. c3 {[%clk 0:02:00]}  Rd8 {[%clk 0:02:56]} 14. Nf4 {[%clk 0:01:54]}  Nb8 {[%clk 0:02:50]} 15. Be3 {[%clk 0:01:53]}  Nc6 {[%clk 0:02:50]} 16. b4 {[%clk 0:01:52]}  b6 {[%clk 0:02:34]} 17. Rfd1 {[%clk 0:01:50]}  e6 {[%clk 0:02:21]} 18. Rxd8+ {[%clk 0:01:49]}  Kxd8 {[%clk 0:02:22]} 19. a4 {[%clk 0:01:44]}  Bd6 {[%clk 0:02:14]} 20. a5 {[%clk 0:01:39]}  b5 {[%clk 0:02:04]} 21. Nd3 {[%clk 0:01:38]}  Kc7 {[%clk 0:01:56]} 22. Nc5 {[%clk 0:01:37]}  Bxc5 {[%clk 0:01:55]} 23. Bxc5 {[%clk 0:01:36]}  Rd8 {[%clk 0:01:55]} 24. a6 {[%clk 0:01:28]}  Rd3 {[%clk 0:01:55]} 25. Rc1 {[%clk 0:01:28]}  Rd2 {[%clk 0:01:50]} 26. g3 {[%clk 0:01:20]}  Ra2 {[%clk 0:01:50]} 27. c4 {[%clk 0:01:19]}  bxc4 {[%clk 0:01:47]} 28. b5 {[%clk 0:01:19]}  Ra5 {[%clk 0:01:42]} 29. Rxc4 {[%clk 0:01:14]}  Rxb5 {[%clk 0:01:39]} 30. Bxa7 {[%clk 0:01:14]}  Ra5 {[%clk 0:01:39]} 31. Bd4 {[%clk 0:01:14]}  f6 {[%clk 0:01:20]} 32. a7 {[%clk 0:01:13]}  Kd6 {[%clk 0:01:16]} 33. Be3 {[%clk 0:01:04]}  Nxa7 {[%clk 0:01:09]} 34. Rb4 {[%clk 0:01:00]}  Nc6 {[%clk 0:01:08]} 35. Rb7 {[%clk 0:00:58]}  Ne7 {[%clk 0:01:04]} 36. Kg2 {[%clk 0:00:56]}  h5 {[%clk 0:01:02]} 37. Bd2 {[%clk 0:00:56]}  Ra4 {[%clk 0:00:48]} 38. Bb4+ {[%clk 0:00:56]}  Kc6 {[%clk 0:00:48]} 39. Rxe7 {[%clk 0:00:56]}  Rxb4 {[%clk 0:00:49]} 40. Rxg7 {[%clk 0:00:56]}  Rb5 {[%clk 0:00:48]} 41. Rf7 {[%clk 0:00:55]}  Rf5 {[%clk 0:00:47]} 42. f4 {[%clk 0:00:54]}  Kd6 {[%clk 0:00:40]} 43. Kf3 {[%clk 0:00:54]}  Kd5 {[%clk 0:00:38]} 44. Rd7+ {[%clk 0:00:48]}  Kc6 {[%clk 0:00:38]} 45. Rd1 {[%clk 0:00:48]}  Rc5 {[%clk 0:00:35]} 46. Rd3 {[%clk 0:00:48]}  Ra5 {[%clk 0:00:33]} 47. h3 {[%clk 0:00:47]}  Kc7 {[%clk 0:00:21]} 48. g4 {[%clk 0:00:46]}  hxg4+ {[%clk 0:00:22]} 49. hxg4 {[%clk 0:00:46]}  Ra1 {[%clk 0:00:22]} 50. g5 {[%clk 0:00:35]}  fxg5 {[%clk 0:00:22]} 51. fxg5 {[%clk 0:00:35]}  Rg1 {[%clk 0:00:20]} 52. Kf4 {[%clk 0:00:35]}  e5+ {[%clk 0:00:20]} 53. Kf5 {[%clk 0:00:35]}  e4 {[%clk 0:00:21]} 54. Re3 {[%clk 0:00:34]}  Kd6 {[%clk 0:00:20]} 55. Rxe4 {[%clk 0:00:34]}  Kd7 {[%clk 0:00:17]} 56. g6 {[%clk 0:00:32]}  Rf1+ {[%clk 0:00:14]} 57. Kg5 {[%clk 0:00:32]}  Rg1+ {[%clk 0:00:12]} 58. Kf6 {[%clk 0:00:32]}  Rf1+ {[%clk 0:00:11]} 59. Kg7 {[%clk 0:00:32]}  Rh1 {[%clk 0:00:09]} 60. Kg8 {[%clk 0:00:29]}  Rh6 {[%clk 0:00:08]} 61. g7 {[%clk 0:00:29]}  Rh3 {[%clk 0:00:08]} 62. Re5 {[%clk 0:00:26]}  Kd6 {[%clk 0:00:07]} 63. Re1 {[%clk 0:00:25]}  Kd7 {[%clk 0:00:07]} 64. Re4 {[%clk 0:00:22]}  Kd8 {[%clk 0:00:03]} 65. Re5 {[%clk 0:00:17]}  Kd7 {[%clk 0:00:03]} 66. Kf7 {[%clk 0:00:18]}  Rf3+ {[%clk 0:00:02]} 67. Kg6 {[%clk 0:00:18]}  Rg3+ {[%clk 0:00:01]} 68. Rg5 {[%clk 0:00:18]}  Re3 {[%clk 0:00:02]} 69. g8=Q {[%clk 0:00:18]}  Re7 {[%clk 0:00:02]} 70. Rd5+ {[%clk 0:00:17]}  Kc7 {[%clk 0:00:02]} 71. Qd8+ {[%clk 0:00:17]}  Kc6 {[%clk 0:00:03]} 72. Qd6+ {[%clk 0:00:15]}  Kb7 {[%clk 0:00:03]} 73. Rb5+ {[%clk 0:00:14]}  Ka8 {[%clk 0:00:04]} 74. Qb8# {[%clk 0:00:14]} 1-0


[Site "https://www.chess.com"]

[Event "Titled Tuesday Blitz July 6 2021"]
[White "Harshavardhan G B"]
[Black "Lee, Qing Aun"]
[WhiteFideId "25059009"]
[BlackFideId "5804167"]
[WhiteElo "1825"]
[BlackElo "2023"]
[Result "0-1"]
[Round "09"]
[TimeControl "180+1"]
[Date "2021.07.06"]
[WhiteClock "0:00:37"]
[BlackClock "0:00:10"]

1. e4 {[%clk 0:03:00]}  e6 {[%clk 0:02:57]} 2. d4 {[%clk 0:02:58]}  d5 {[%clk 0:02:57]} 3. Bd3 {[%clk 0:02:58]}  dxe4 {[%clk 0:02:56]} 4. Bxe4 {[%clk 0:02:59]}  Nf6 {[%clk 0:02:57]} 5. Bf3 {[%clk 0:03:00]}  Nbd7 {[%clk 0:02:57]} 6. Ne2 {[%clk 0:02:59]}  c5 {[%clk 0:02:57]} 7. Be3 {[%clk 0:02:59]}  cxd4 {[%clk 0:02:55]} 8. Nxd4 {[%clk 0:02:57]}  e5 {[%clk 0:02:44]} 9. Nb5 {[%clk 0:02:56]}  Qa5+ {[%clk 0:02:41]} 10. N1c3 {[%clk 0:02:54]}  Bb4 {[%clk 0:01:56]} 11. Nd6+ {[%clk 0:02:50]}  Ke7 {[%clk 0:01:46]} 12. Nf5+ {[%clk 0:02:48]}  Kf8 {[%clk 0:01:45]} 13. O-O {[%clk 0:02:49]}  h5 {[%clk 0:01:33]} 14. a3 {[%clk 0:02:39]}  Bxc3 {[%clk 0:01:32]} 15. Qd6+ {[%clk 0:02:36]}  Kg8 {[%clk 0:01:32]} 16. bxc3 {[%clk 0:02:36]}  Nf8 {[%clk 0:01:18]} 17. Ne7+ {[%clk 0:02:34]}  Kh7 {[%clk 0:01:18]} 18. Be2 {[%clk 0:02:30]}  Be6 {[%clk 0:01:12]} 19. Bd3+ {[%clk 0:02:26]}  e4 {[%clk 0:01:09]} 20. Be2 {[%clk 0:01:54]}  Rd8 {[%clk 0:01:08]} 21. Qf4 {[%clk 0:01:51]}  Rd7 {[%clk 0:01:01]} 22. f3 {[%clk 0:01:43]}  Rxe7 {[%clk 0:00:56]} 23. fxe4 {[%clk 0:01:42]}  Ng6 {[%clk 0:00:56]} 24. Qf3 {[%clk 0:01:41]}  Bg4 {[%clk 0:00:55]} 25. Qf2 {[%clk 0:01:40]}  Bxe2 {[%clk 0:00:54]} 26. Qxe2 {[%clk 0:01:40]}  Rxe4 {[%clk 0:00:54]} 27. Qd3 {[%clk 0:01:39]}  Rhe8 {[%clk 0:00:28]} 28. Bd4 {[%clk 0:01:38]}  Ng4 {[%clk 0:00:19]} 29. h3 {[%clk 0:01:30]}  Nh6 {[%clk 0:00:18]} 30. Rab1 {[%clk 0:01:25]}  Qg5 {[%clk 0:00:17]} 31. Rxb7 {[%clk 0:01:17]}  Nf4 {[%clk 0:00:17]} 32. Qf3 {[%clk 0:01:11]}  Re2 {[%clk 0:00:16]} 33. g4 {[%clk 0:01:06]}  hxg4 {[%clk 0:00:15]} 34. Qxf4 {[%clk 0:01:06]}  Qh4 {[%clk 0:00:14]} 35. hxg4 {[%clk 0:01:02]}  Qh3 {[%clk 0:00:14]} 36. Bf2 {[%clk 0:00:58]}  R8e4 {[%clk 0:00:13]} 37. Rxf7 {[%clk 0:00:43]}  Rxf4 {[%clk 0:00:13]} 38. Rxf4 {[%clk 0:00:43]}  Nxg4 {[%clk 0:00:13]} 39. Rxg4 {[%clk 0:00:39]}  Qxg4+ {[%clk 0:00:13]} 40. Kh2 {[%clk 0:00:40]}  Re5 {[%clk 0:00:10]} 41. Bg3 {[%clk 0:00:39]}  Rh5+ {[%clk 0:00:10]} 42. Kg2 {[%clk 0:00:40]}  Qh3+ {[%clk 0:00:10]} 43. Kg1 {[%clk 0:00:37]}  Qxg3# {[%clk 0:00:10]} 0-1


[Site "https://www.chess.com"]

[Event "Titled Tuesday Blitz July 6 2021"]
[White "Hebden, Mark L"]
[Black "Tomiello, Mateus Costamilan"]
[WhiteFideId "400084"]
[BlackFideId "22701958"]
[WhiteElo "2457"]
[BlackElo "1995"]
[Result "0-1"]
[Round "09"]
[TimeControl "180+1"]
[Date "2021.07.06"]
[WhiteClock "0:00:13"]
[BlackClock "0:00:08"]

1. d4 {[%clk 0:03:00]}  d5 {[%clk 0:02:59]} 2. Nf3 {[%clk 0:03:01]}  Nf6 {[%clk 0:02:59]} 3. c4 {[%clk 0:03:01]}  c6 {[%clk 0:02:58]} 4. e3 {[%clk 0:03:01]}  e6 {[%clk 0:02:53]} 5. Bd3 {[%clk 0:02:59]}  Be7 {[%clk 0:02:50]} 6. O-O {[%clk 0:02:58]}  O-O {[%clk 0:02:51]} 7. b3 {[%clk 0:02:57]}  Nbd7 {[%clk 0:02:47]} 8. Bb2 {[%clk 0:02:56]}  b6 {[%clk 0:02:41]} 9. Nc3 {[%clk 0:02:55]}  Bb7 {[%clk 0:02:41]} 10. Qc2 {[%clk 0:02:54]}  Rc8 {[%clk 0:02:33]} 11. Rad1 {[%clk 0:02:52]}  Qc7 {[%clk 0:02:29]} 12. Ne5 {[%clk 0:02:47]}  Nxe5 {[%clk 0:02:02]} 13. dxe5 {[%clk 0:02:46]}  Ng4 {[%clk 0:02:02]} 14. h3 {[%clk 0:02:16]}  Nxe5 {[%clk 0:01:59]} 15. Bxh7+ {[%clk 0:02:13]}  Kh8 {[%clk 0:01:59]} 16. cxd5 {[%clk 0:02:13]}  cxd5 {[%clk 0:01:40]} 17. Bd3 {[%clk 0:01:46]}  Bf6 {[%clk 0:01:23]} 18. Qe2 {[%clk 0:01:41]}  Nxd3 {[%clk 0:01:19]} 19. Rxd3 {[%clk 0:01:27]}  Ba6 {[%clk 0:00:48]} 20. Nxd5 {[%clk 0:01:21]}  exd5 {[%clk 0:00:28]} 21. Qh5+ {[%clk 0:01:04]}  Kg8 {[%clk 0:00:28]} 22. Bxf6 {[%clk 0:01:02]}  Bxd3 {[%clk 0:00:26]} 23. Qg4 {[%clk 0:00:48]}  Bg6 {[%clk 0:00:25]} 24. Bd4 {[%clk 0:00:48]}  Qc2 {[%clk 0:00:18]} 25. Qd7 {[%clk 0:00:41]}  Rc7 {[%clk 0:00:15]} 26. Qxd5 {[%clk 0:00:40]}  Qxa2 {[%clk 0:00:11]} 27. h4 {[%clk 0:00:39]}  Qc2 {[%clk 0:00:07]} 28. Qe5 {[%clk 0:00:38]}  f6 {[%clk 0:00:06]} 29. Qe6+ {[%clk 0:00:35]}  Bf7 {[%clk 0:00:06]} 30. Qg4 {[%clk 0:00:35]}  Qg6 {[%clk 0:00:04]} 31. Qf4 {[%clk 0:00:35]}  Re7 {[%clk 0:00:04]} 32. Rc1 {[%clk 0:00:35]}  Re4 {[%clk 0:00:04]} 33. Qf3 {[%clk 0:00:34]}  Rg4 {[%clk 0:00:05]} 34. g3 {[%clk 0:00:32]}  Rd8 {[%clk 0:00:05]} 35. Rc7 {[%clk 0:00:30]}  Bd5 {[%clk 0:00:05]} 36. Qd1 {[%clk 0:00:27]}  Qe4 {[%clk 0:00:06]} 37. f3 {[%clk 0:00:20]}  Rxg3+ {[%clk 0:00:06]} 38. Kh2 {[%clk 0:00:19]}  Rxf3 {[%clk 0:00:06]} 39. Qg1 {[%clk 0:00:16]}  Qxh4+ {[%clk 0:00:05]} 40. Kg2 {[%clk 0:00:15]}  Qg3+ {[%clk 0:00:06]} 41. Kh1 {[%clk 0:00:14]}  Qh3+ {[%clk 0:00:07]} 42. Qh2 {[%clk 0:00:13]}  Rf1# {[%clk 0:00:08]} 0-1


[Site "https://www.chess.com"]

[Event "Titled Tuesday Blitz July 6 2021"]
[White "Isajevsky, Anton"]
[Black "Valle Maytin, Luis Enrique"]
[WhiteFideId "4142500"]
[BlackFideId "3503666"]
[WhiteElo "2510"]
[BlackElo "2284"]
[Result "1-0"]
[Round "09"]
[TimeControl "180+1"]
[Date "2021.07.06"]
[WhiteClock "0:00:57"]
[BlackClock "0:00:47"]

1. c4 {[%clk 0:03:00]}  e5 {[%clk 0:02:58]} 2. g3 {[%clk 0:03:00]}  Nc6 {[%clk 0:02:58]} 3. Bg2 {[%clk 0:03:00]}  Nf6 {[%clk 0:02:59]} 4. Nc3 {[%clk 0:02:59]}  Bc5 {[%clk 0:03:00]} 5. e3 {[%clk 0:02:56]}  a5 {[%clk 0:02:58]} 6. Nge2 {[%clk 0:02:55]}  d6 {[%clk 0:02:57]} 7. h3 {[%clk 0:02:53]}  O-O {[%clk 0:02:56]} 8. d4 {[%clk 0:02:52]}  exd4 {[%clk 0:02:56]} 9. exd4 {[%clk 0:02:53]}  Ba7 {[%clk 0:02:53]} 10. O-O {[%clk 0:02:53]}  Bf5 {[%clk 0:02:53]} 11. g4 {[%clk 0:02:50]}  Bg6 {[%clk 0:02:52]} 12. Bg5 {[%clk 0:02:46]}  h6 {[%clk 0:02:38]} 13. Bh4 {[%clk 0:02:45]}  Bh7 {[%clk 0:02:38]} 14. f4 {[%clk 0:02:14]}  Qe8 {[%clk 0:02:17]} 15. Bxf6 {[%clk 0:02:12]}  gxf6 {[%clk 0:02:18]} 16. Nd5 {[%clk 0:02:02]}  Qd8 {[%clk 0:02:10]} 17. f5 {[%clk 0:01:58]}  Kh8 {[%clk 0:01:59]} 18. Qd2 {[%clk 0:01:44]}  Kg7 {[%clk 0:01:55]} 19. Rad1 {[%clk 0:01:37]}  Re8 {[%clk 0:01:50]} 20. Ng3 {[%clk 0:01:14]}  Bxd4+ {[%clk 0:01:46]} 21. Kh1 {[%clk 0:01:14]}  Be5 {[%clk 0:01:32]} 22. Nh5+ {[%clk 0:01:13]}  Kh8 {[%clk 0:01:28]} 23. Qxh6 {[%clk 0:01:14]}  Rg8 {[%clk 0:01:28]} 24. Ndxf6 {[%clk 0:01:12]}  Bxf6 {[%clk 0:01:26]} 25. Nxf6 {[%clk 0:01:12]}  Rg7 {[%clk 0:01:26]} 26. Bxc6 {[%clk 0:01:04]}  bxc6 {[%clk 0:01:24]} 27. Rde1 {[%clk 0:01:04]}  Qf8 {[%clk 0:01:16]} 28. Re3 {[%clk 0:01:00]}  d5 {[%clk 0:01:15]} 29. Rfe1 {[%clk 0:01:00]}  Rg6 {[%clk 0:00:47]} 30. Qxh7# {[%clk 0:00:57]} 1-0


[Site "https://www.chess.com"]

[Event "Titled Tuesday Blitz July 6 2021"]
[White "Karavaeva, Olga"]
[Black "Kalajzic, Ivan"]
[WhiteFideId "4124111"]
[BlackFideId "14506378"]
[WhiteElo "2105"]
[BlackElo "2163"]
[Result "0-1"]
[Round "09"]
[TimeControl "180+1"]
[Date "2021.07.06"]
[WhiteClock "0:00:17"]
[BlackClock "0:00:17"]

1. c4 {[%clk 0:03:00]}  Nc6 {[%clk 0:02:27]} 2. g3 {[%clk 0:02:58]}  e5 {[%clk 0:02:26]} 3. Bg2 {[%clk 0:02:58]}  Bc5 {[%clk 0:02:26]} 4. e3 {[%clk 0:02:58]}  d6 {[%clk 0:02:26]} 5. Ne2 {[%clk 0:02:57]}  Bf5 {[%clk 0:02:26]} 6. d4 {[%clk 0:02:56]}  Bb4+ {[%clk 0:02:22]} 7. Bd2 {[%clk 0:02:54]}  Bxd2+ {[%clk 0:02:08]} 8. Qxd2 {[%clk 0:02:53]}  Qd7 {[%clk 0:01:56]} 9. h4 {[%clk 0:02:47]}  Nf6 {[%clk 0:01:53]} 10. Nbc3 {[%clk 0:02:46]}  O-O {[%clk 0:01:52]} 11. a3 {[%clk 0:02:33]}  exd4 {[%clk 0:01:48]} 12. exd4 {[%clk 0:02:34]}  Rfe8 {[%clk 0:01:46]} 13. O-O {[%clk 0:02:28]}  Ne4 {[%clk 0:01:42]} 14. Qf4 {[%clk 0:02:07]}  Nxc3 {[%clk 0:01:34]} 15. Nxc3 {[%clk 0:02:08]}  Bh3 {[%clk 0:01:32]} 16. Rfe1 {[%clk 0:01:58]}  Bxg2 {[%clk 0:01:31]} 17. Kxg2 {[%clk 0:01:58]}  h6 {[%clk 0:01:21]} 18. Nd5 {[%clk 0:01:55]}  Ne7 {[%clk 0:01:15]} 19. Ne3 {[%clk 0:01:32]}  Ng6 {[%clk 0:01:01]} 20. Qf3 {[%clk 0:01:32]}  c6 {[%clk 0:00:55]} 21. Nf5 {[%clk 0:01:28]}  d5 {[%clk 0:00:46]} 22. c5 {[%clk 0:01:23]}  Rxe1 {[%clk 0:00:43]} 23. Rxe1 {[%clk 0:01:24]}  Re8 {[%clk 0:00:43]} 24. Rxe8+ {[%clk 0:01:20]}  Qxe8 {[%clk 0:00:44]} 25. h5 {[%clk 0:01:21]}  Nf8 {[%clk 0:00:39]} 26. Qg4 {[%clk 0:01:15]}  Qe4+ {[%clk 0:00:34]} 27. Qxe4 {[%clk 0:01:13]}  dxe4 {[%clk 0:00:35]} 28. Nd6 {[%clk 0:01:13]}  Ne6 {[%clk 0:00:34]} 29. Nxb7 {[%clk 0:01:11]}  Nxd4 {[%clk 0:00:34]} 30. b4 {[%clk 0:00:55]}  Kf8 {[%clk 0:00:33]} 31. Nd6 {[%clk 0:00:53]}  f5 {[%clk 0:00:29]} 32. Nc8 {[%clk 0:00:46]}  a6 {[%clk 0:00:28]} 33. Nd6 {[%clk 0:00:43]}  Ke7 {[%clk 0:00:28]} 34. Nc4 {[%clk 0:00:35]}  Ke6 {[%clk 0:00:27]} 35. Kf1 {[%clk 0:00:30]}  Kd5 {[%clk 0:00:26]} 36. Ne3+ {[%clk 0:00:29]}  Ke5 {[%clk 0:00:26]} 37. Nc4+ {[%clk 0:00:28]}  Kd5 {[%clk 0:00:25]} 38. Nb6+ {[%clk 0:00:29]}  Ke5 {[%clk 0:00:24]} 39. Ke1 {[%clk 0:00:29]}  Nc2+ {[%clk 0:00:24]} 40. Kd2 {[%clk 0:00:28]}  Nxa3 {[%clk 0:00:25]} 41. Kc3 {[%clk 0:00:22]}  f4 {[%clk 0:00:24]} 42. gxf4+ {[%clk 0:00:18]}  Kxf4 {[%clk 0:00:25]} 43. Nd7 {[%clk 0:00:16]}  Kf3 {[%clk 0:00:20]} 44. Ne5+ {[%clk 0:00:14]}  Kxf2 {[%clk 0:00:20]} 45. Nxc6 {[%clk 0:00:15]}  e3 {[%clk 0:00:20]} 46. Nd4 {[%clk 0:00:15]}  Nb5+ {[%clk 0:00:20]} 47. Nxb5 {[%clk 0:00:15]}  axb5 {[%clk 0:00:21]} 48. c6 {[%clk 0:00:16]}  e2 {[%clk 0:00:21]} 49. c7 {[%clk 0:00:17]}  e1=Q+ {[%clk 0:00:22]} 50. Kd4 {[%clk 0:00:18]}  Qe8 {[%clk 0:00:21]} 51. Kc5 {[%clk 0:00:17]}  Kg3 {[%clk 0:00:17]} 0-1


[Site "https://www.chess.com"]

[Event "Titled Tuesday Blitz July 6 2021"]
[White "Kavyev, Ruslan"]
[Black "Plat, Vojtech"]
[WhiteFideId "34110981"]
[BlackFideId "325740"]
[WhiteElo "2172"]
[BlackElo "2486"]
[Result "1-0"]
[Round "09"]
[TimeControl "180+1"]
[Date "2021.07.06"]
[WhiteClock "0:00:20"]
[BlackClock "0:00:09"]

1. e4 {[%clk 0:03:00]}  c5 {[%clk 0:02:59]} 2. Nf3 {[%clk 0:02:59]}  Nc6 {[%clk 0:02:58]} 3. d4 {[%clk 0:02:59]}  cxd4 {[%clk 0:02:58]} 4. Nxd4 {[%clk 0:03:00]}  e5 {[%clk 0:02:58]} 5. Nb5 {[%clk 0:02:58]}  a6 {[%clk 0:02:57]} 6. Nd6+ {[%clk 0:02:58]}  Bxd6 {[%clk 0:02:57]} 7. Qxd6 {[%clk 0:02:59]}  Qf6 {[%clk 0:02:58]} 8. Qd1 {[%clk 0:02:59]}  Qg6 {[%clk 0:02:58]} 9. Nc3 {[%clk 0:02:59]}  d5 {[%clk 0:02:58]} 10. Nxd5 {[%clk 0:02:38]}  Qxe4+ {[%clk 0:02:54]} 11. Be3 {[%clk 0:02:29]}  Nd4 {[%clk 0:02:54]} 12. Nc7+ {[%clk 0:02:29]}  Ke7 {[%clk 0:02:53]} 13. Nxa8 {[%clk 0:02:29]}  Nxc2+ {[%clk 0:02:52]} 14. Kd2 {[%clk 0:02:28]}  Nxe3 {[%clk 0:02:49]} 15. fxe3 {[%clk 0:02:23]}  Nf6 {[%clk 0:02:43]} 16. Qc2 {[%clk 0:01:17]}  Rd8+ {[%clk 0:02:39]} 17. Bd3 {[%clk 0:01:16]}  Qxg2+ {[%clk 0:02:31]} 18. Kc3 {[%clk 0:01:16]}  Qc6+ {[%clk 0:01:58]} 19. Kd2 {[%clk 0:01:16]}  Qg2+ {[%clk 0:01:56]} 20. Kc3 {[%clk 0:01:16]}  Rxd3+ {[%clk 0:01:56]} 21. Qxd3 {[%clk 0:01:14]}  Nd5+ {[%clk 0:01:51]} 22. Kb3 {[%clk 0:01:09]}  Be6 {[%clk 0:01:50]} 23. Ka3 {[%clk 0:01:08]}  b5 {[%clk 0:01:42]} 24. Rhd1 {[%clk 0:00:54]}  b4+ {[%clk 0:01:42]} 25. Ka4 {[%clk 0:00:54]}  Qxb2 {[%clk 0:01:41]} 26. Nc7 {[%clk 0:00:37]}  Nc3+ {[%clk 0:01:05]} 27. Ka5 {[%clk 0:00:37]}  Qa3+ {[%clk 0:00:20]} 28. Kb6 {[%clk 0:00:35]}  Na4+ {[%clk 0:00:20]} 29. Ka7 {[%clk 0:00:33]}  Qxd3 {[%clk 0:00:16]} 30. Rxd3 {[%clk 0:00:33]}  Bc4 {[%clk 0:00:17]} 31. Rd2 {[%clk 0:00:28]}  a5 {[%clk 0:00:17]} 32. Nd5+ {[%clk 0:00:25]}  Ke6 {[%clk 0:00:17]} 33. Nb6 {[%clk 0:00:26]}  Nxb6 {[%clk 0:00:15]} 34. Kxb6 {[%clk 0:00:27]}  b3 {[%clk 0:00:14]} 35. axb3 {[%clk 0:00:27]}  Bxb3 {[%clk 0:00:14]} 36. Rxa5 {[%clk 0:00:27]}  Bc4 {[%clk 0:00:13]} 37. Kc5 {[%clk 0:00:26]}  Bf1 {[%clk 0:00:13]} 38. Ra1 {[%clk 0:00:22]}  Bh3 {[%clk 0:00:12]} 39. Rf2 {[%clk 0:00:20]}  f6 {[%clk 0:00:11]} 40. Ra7 {[%clk 0:00:20]}  g6 {[%clk 0:00:09]} 41. Ra6+ {[%clk 0:00:20]} 1-0


[Site "https://www.chess.com"]

[Event "Titled Tuesday Blitz July 6 2021"]
[White "Keymer, Vincent"]
[Black "Jarovinsky, Alexey"]
[WhiteFideId "12940690"]
[BlackFideId "14115131"]
[WhiteElo "2474"]
[BlackElo "2446"]
[Result "1-0"]
[Round "09"]
[TimeControl "180+1"]
[Date "2021.07.06"]
[WhiteClock "0:00:21"]
[BlackClock "0:00:02"]

1. Nf3 {[%clk 0:03:00]}  Nc6 {[%clk 0:02:58]} 2. d4 {[%clk 0:03:00]}  d6 {[%clk 0:02:57]} 3. c4 {[%clk 0:02:57]}  Nf6 {[%clk 0:02:53]} 4. Nc3 {[%clk 0:02:57]}  Bg4 {[%clk 0:02:47]} 5. d5 {[%clk 0:02:49]}  Nb8 {[%clk 0:02:42]} 6. e4 {[%clk 0:02:48]}  g6 {[%clk 0:02:39]} 7. Be2 {[%clk 0:02:47]}  Bg7 {[%clk 0:02:39]} 8. O-O {[%clk 0:02:47]}  O-O {[%clk 0:02:38]} 9. h3 {[%clk 0:02:46]}  Bxf3 {[%clk 0:02:37]} 10. Bxf3 {[%clk 0:02:47]}  Nfd7 {[%clk 0:02:35]} 11. Be3 {[%clk 0:02:42]}  a5 {[%clk 0:02:33]} 12. Qc2 {[%clk 0:02:16]}  Na6 {[%clk 0:02:32]} 13. a3 {[%clk 0:02:16]}  c6 {[%clk 0:02:31]} 14. Be2 {[%clk 0:02:12]}  Nac5 {[%clk 0:02:28]} 15. Rac1 {[%clk 0:01:55]}  a4 {[%clk 0:02:27]} 16. Rcd1 {[%clk 0:01:52]}  Qa5 {[%clk 0:02:25]} 17. Bd4 {[%clk 0:01:45]}  Bxd4 {[%clk 0:02:21]} 18. Rxd4 {[%clk 0:01:46]}  Nb3 {[%clk 0:02:20]} 19. Rdd1 {[%clk 0:01:46]}  c5 {[%clk 0:02:13]} 20. f4 {[%clk 0:01:31]}  Nd4 {[%clk 0:02:13]} 21. Qd2 {[%clk 0:01:31]}  e6 {[%clk 0:01:49]} 22. Bd3 {[%clk 0:01:23]}  exd5 {[%clk 0:01:18]} 23. Nxd5 {[%clk 0:01:22]}  Qxd2 {[%clk 0:01:16]} 24. Rxd2 {[%clk 0:01:23]}  f5 {[%clk 0:01:03]} 25. exf5 {[%clk 0:01:19]}  gxf5 {[%clk 0:01:02]} 26. Bc2 {[%clk 0:01:11]}  Nf6 {[%clk 0:00:51]} 27. Ne7+ {[%clk 0:01:03]}  Kh8 {[%clk 0:00:44]} 28. Nxf5 {[%clk 0:01:03]}  Nxc2 {[%clk 0:00:36]} 29. Rxc2 {[%clk 0:01:04]}  Ne4 {[%clk 0:00:29]} 30. g4 {[%clk 0:01:03]}  Rae8 {[%clk 0:00:19]} 31. Re1 {[%clk 0:00:56]}  Nf6 {[%clk 0:00:11]} 32. Rxe8 {[%clk 0:00:49]}  Rxe8 {[%clk 0:00:12]} 33. Nxd6 {[%clk 0:00:49]}  Re3 {[%clk 0:00:12]} 34. Kg2 {[%clk 0:00:45]}  Rb3 {[%clk 0:00:11]} 35. Re2 {[%clk 0:00:43]}  Kg7 {[%clk 0:00:10]} 36. Nb5 {[%clk 0:00:38]}  Kf7 {[%clk 0:00:08]} 37. Nc3 {[%clk 0:00:38]}  Nd7 {[%clk 0:00:05]} 38. Nxa4 {[%clk 0:00:37]}  b5 {[%clk 0:00:05]} 39. cxb5 {[%clk 0:00:37]}  Rxb5 {[%clk 0:00:05]} 40. Nc3 {[%clk 0:00:37]}  Rb3 {[%clk 0:00:04]} 41. g5 {[%clk 0:00:35]}  Kg6 {[%clk 0:00:03]} 42. Kf3 {[%clk 0:00:35]}  Nb6 {[%clk 0:00:02]} 43. Kg4 {[%clk 0:00:34]}  Nc4 {[%clk 0:00:02]} 44. f5+ {[%clk 0:00:33]}  Kf7 {[%clk 0:00:02]} 45. h4 {[%clk 0:00:32]}  Nxb2 {[%clk 0:00:01]} 46. Nd5 {[%clk 0:00:32]}  Rxa3 {[%clk 0:00:01]} 47. Re7+ {[%clk 0:00:32]}  Kf8 {[%clk 0:00:01]} 48. Rxh7 {[%clk 0:00:32]}  Ra4+ {[%clk 0:00:01]} 49. Kh5 {[%clk 0:00:32]}  Rd4 {[%clk 0:00:01]} 50. f6 {[%clk 0:00:25]}  Nd3 {[%clk 0:00:02]} 51. Nc7 {[%clk 0:00:21]}  Nf4+ {[%clk 0:00:02]} 52. Kh6 {[%clk 0:00:21]} 1-0


[Site "https://www.chess.com"]